Cogmind - Beta 16.1 @@@ ROGUE MODE // 2026.04.04 @ 16:18:04 Player: KURIIRI Result: Destroyed by 0H-TEY(R) with Subdweller Machine Gun Performance ------------- Evolutions (0) 0 Regions Visited (2) 400 Robots Destroyed (23) 115 Value Destroyed (489) 489 Prototype IDs (0) 0 Alien Tech Used (0) 0 Bonus (0) 0 TOTAL SCORE: 1004 Bonus ------- None Cogmind --------- Core Integrity 0/250 Matter 279/300 Energy 250/250 System Corruption 0% Temperature Cool (0) Movement Treading (160) Location -10/Subcaves Parts ------- > --- POWER (1) -------- Ion Engine > --- PROPULSION (2) --- Light Treads Light Treads > --- UTILITY (2) ------ Disposable Heat Sink Medium Storage Unit > --- WEAPON (2) ------- Medium Laser Rocket Launcher > --- INVENTORY (10) --- Ion Engine Wheel Compact Wheel Huge Storage Unit Sensor Array Recalibrator Medium Laser Assault Rifle Rocket Launcher Peak State ------------ > --- POWER ------------ Ion Engine > --- PROPULSION ------- Light Treads Light Treads > --- UTILITY ---------- Disposable Heat Sink Medium Storage Unit > --- WEAPON ----------- Medium Laser Rocket Launcher > --- INVENTORY -------- Ion Engine Wheel Compact Wheel Huge Storage Unit Sensor Array Recalibrator Medium Laser Assault Rifle Rocket Launcher [Rating: 10] Favorites ----------- Power Ion Engine Engine Ion Engine Propulsion Light Treads Treads Light Treads Leg Aluminum Leg Utility Disposable Heat Sink Device Disposable Heat Sink Storage Small Storage Unit Weapon Medium Laser Energy Gun Medium Laser Ballistic Gun Assault Rifle Launcher Rocket Launcher Build | -11 -10 -10 ------- Run | Yrd Mat Sub Slots Evolved . | . . . Power . | . . . Propulsion . | . . . Utility . | . . . Weapon . | . . . Parts Attached 12 | 2 10 . Power 1 | . 1 . Engine 1 | . 1 . Core . | . . . Reactor . | . . . Propulsion 2 | 2 . . Treads 2 | 2 . . Leg . | . . . Wheel . | . . . Hover . | . . . Flight . | . . . Utility 4 | . 4 . Device 2 | . 2 . Storage 2 | . 2 . Processor . | . . . Hackware . | . . . Protection . | . . . Artifact . | . . . Weapon 5 | . 5 . Energy Gun 3 | . 3 . Energy Cannon . | . . . Ballistic Gun 1 | . 1 . Ballistic Cannon . | . . . Launcher 1 | . 1 . Special Weapon . | . . . Impact Weapon . | . . . Slashing Weapon . | . . . Piercing Weapon . | . . . Special Melee Weapon . | . . . Unidentified Prototypes . | . . . Parts Lost . | . . . Power . | . . . Propulsion . | . . . Utility . | . . . Weapon . | . . . Highest Loss Streak . | . . . To Critical Strikes . | . . . Average Backups 7 | 5 7 9 Power 1 | 1 1 1 Propulsion 2 | 3 2 2 Utility 2 | . 2 3 Weapon 2 | 1 2 3 Tool/Special . | . . . Unused Backups 9 | . 6 3 Power . | . . . Propulsion . | . . . Utility 4 | . 2 2 Weapon 5 | . 4 1 Tool/Special . | . . . Average Slot Usage (%) 97 | . 97 100 Engine 13 | . 13 14 Treads 27 | . 27 28 Device 12 | . 12 14 Storage 14 | . 14 14 Energy Gun 19 | . 19 14 Ballistic Gun 7 | . 8 . Peak Build Rating 10 | 6 10 10 Average Rating 8 | 5 8 10 On Entrance 7 | 6 6 10 Avg Prop Armor Cover (%) . | . . . Naked Turns . | . . . Heaviest Build 90 | 12 90 22 Greatest Support 40 | 40 40 40 Greatest Overweight (x) 2 | . 2 . Average Overweight (x) . | . . . Largest Inventory Capacity 25 | 8 25 10 Average Capacity 9 | 8 9 10 Most Carried 9 | 6 9 9 Average Carried 7 | 5 7 9 Final Capacity 10 | 8 10 10 Final Carried 9 | 4 9 9 Class Distribution -------------------- 100% | Mutant Dominant Class ---------------- Mutant | -10/Materials Mutant | -10/Subcaves Resources | -11 -10 -10 ----------- Run | Yrd Mat Sub Matter Collected 532 | 238 294 . Remotely . | . . . Salvage Created 745 | 101 644 . Parts 46 | 4 42 . Haulers Intercepted 1 | . 1 . Recyclers Shooed . | . . . Parts Field Recycled . | . . . Retrieved Matter . | . . . Parts Self-Destructed . | . . . Prevented . | . . . Parts Restored . | . . . Kills | -11 -10 -10 ------- Run | Yrd Mat Sub Combat Hostiles Destroyed 16 | . 16 . Guns 16 | . 16 . Classes Destroyed 7 | 2 5 . Tunneler 1 | 1 . . Hauler 1 | . 1 . Recycler 1 | 1 . . Mechanic 1 | . 1 . Watcher 3 | . 3 . Swarmer 6 | . 6 . Grunt 10 | . 10 . Best Kill Streak 4 | 2 4 . Combat Bots Only 3 | . 3 . Max Kills in Single Turn 2 | 1 2 . Gunslinging 1 | . 1 . Exploded . | . . . Melee . | . . . Uniques/NPCs Destroyed . | . . . Combat | -11 -10 -10 -------- Run | Yrd Mat Sub Hostile Shots Fired 86 | . 80 6 Missed 27 | . 25 2 Hits 59 | . 55 4 Projectile 59 | . 55 4 AOE 2 | . . 2 Critical Strikes 1 | . 1 . Damage Taken 782 | . 630 152 Core 252 | . 155 97 Absorbed by Shields . | . . . Regen/Repaired (Parts) 308 | . 308 . Core Remaining (%) 100 | 100 . . Volleys Fired 74 | 9 64 1 Largest 2 | 2 2 1 Hottest 100 | 40 100 33 Shots Fired 146 | 18 127 1 Gun 145 | 18 127 . Cannon . | . . . Launcher 1 | . . 1 Special . | . . . Kinetic 94 | 18 76 . Thermal 51 | . 51 . Explosive 1 | . . 1 Electromagnetic . | . . . Robot Hit Streak 12 | 3 12 3 Robot Miss Streak 4 | 4 3 . Penetration Max . | . . . Secondary Targets 3 | . 3 . Max Gunslinging Chain 1 | . 1 . Shots Hit Robots 89 | 8 80 1 Core Hits 37 | 4 33 . Critical Kills 1 | . 1 . Critical Parts Destroyed . | . . . Critical Strikes 1 | . 1 . Destroy 1 | . 1 . Melee Attacks . | . . . Impact . | . . . Slashing . | . . . Piercing . | . . . Sneak Attacks . | . . . Combat Hostiles . | . . . Follow-up Attacks . | . . . Damage Inflicted 1216 | 60 1025 131 Guns 1085 | 60 1025 . Cannons . | . . . Explosions 131 | . . 131 Melee . | . . . Ramming . | . . . Kinetic 694 | 60 634 . Thermal 391 | . 391 . Explosive 131 | . . 131 Electromagnetic . | . . . Impact . | . . . Slashing . | . . . Piercing . | . . . Highest Corruption . | . . . Average Corruption . | . . . Corruption Purged . | . . . Corruption Blocked . | . . . Overload Shots . | . . . Overflow Damage . | . . . Projectiles . | . . . Explosions . | . . . Melee . | . . . Knockbacks . | . . . Impact . | . . . Kinetic . | . . . Secondary . | . . . Self-Inflicted Damage . | . . . Shots . | . . . Rammed . | . . . Targets Rammed . | . . . Kicked . | . . . Crushed . | . . . Highest Temperature 199 | . 199 . Average Temperature 80 | . 80 . Received Heat Transfer 336 | . 336 . Siege Activations . | . . . Martial Activations . | . . . Shielding Activations . | . . . Robots Disrupted . | . . . Combat Hostiles . | . . . Robots Corrupted . | . . . Combat Hostiles . | . . . Parts Fried . | . . . Impact Corruptions . | . . . Robots Melted . | . . . Combat Hostiles . | . . . Parts Melted 1 | . 1 . Heat Transferred 992 | . 992 . Parts Sabotaged . | . . . Parts Stolen . | . . . Parts Stripped . | . . . Power Chain Reactions . | . . . Alert | -11 -10 -10 ------- Run | Yrd Mat Sub Maximum Alert Level 1 | . 1 . Low Security (%) 95 | 100 95 . Level 1 4 | . 4 . Level 2 . | . . . Level 3 . | . . . Level 4 . | . . . Level 5 . | . . . High Security . | . . . Max Security . | . . . Peak Influence 228 | 5 228 . Initial 3 | . 3 . Average 82 | 3 84 . Influence Increases 532 | 10 522 . Destroy 0b10 Robot/C 320 | . 320 . Destroy 0b10 Robot/NC 35 | 10 25 . Destroy Leader 68 | . 68 . Successful Hack 34 | . 34 . Select Force Hacks 60 | . 60 . Lose Combat Pursuer 15 | . 15 . Influence Decreases 524 | 5 510 9 Entered New Map 11 | . 2 9 Time Decay 513 | 5 508 . Squads Dispatched 3 | . 3 . Investigation 2 | . 2 . Extermination . | . . . Reinforcement 1 | . 1 . Assault . | . . . Garrison . | . . . Intercept . | . . . Searches Triggered . | . . . Construction Impeded . | . . . Haulers Reinforced . | . . . Active Scanning Responses . | . . . Cargo Convoy Interrupts . | . . . Stealth | -11 -10 -10 --------- Run | Yrd Mat Sub Distress Signals 3 | . 3 . Communications Jammed . | . . . Distress Signals . | . . . Times Spotted 26 | . 22 4 Peak Tracking Total 4 | . 4 2 Tactical Retreats 1 | . 1 . Traps | -11 -10 -10 ------- Run | Yrd Mat Sub Traps Triggered . | . . . Indirectly . | . . . Trap Hack Attempts . | . . . Triggered . | . . . Disarmed . | . . . Reprogrammed . | . . . Reused . | . . . Traps Extracted . | . . . Installed . | . . . Triggered . | . . . Machines | -11 -10 -10 ---------- Run | Yrd Mat Sub Machines Disabled . | . . . Max in Single Turn . | . . . Machines Repaired . | . . . Machines Dismantled . | . . . Machines Sabotaged . | . . . Overloaded Fab Kills . | . . . Hacking | -11 -10 -10 --------- Run | Yrd Mat Sub Machines Accessed 8 | . 8 . Terminals 5 | . 5 . Fabricators . | . . . Repair Stations 1 | . 1 . Recycling Units 2 | . 2 . Scanalyzers . | . . . Garrison Access . | . . . Total Hacks 26 | . 26 . Successful 16 | . 16 . Failed 9 | . 9 . Catastrophic 1 | . 1 . Database Lockouts 1 | . 1 . Manual 18 | . 18 . Terminals 18 | . 18 . Fabricators . | . . . Repair Stations 6 | . 6 . Recycling Units 2 | . 2 . Scanalyzers . | . . . Garrison Access . | . . . Terminal Hacks 1 | . 1 . Robot Analysis 1 | . 1 . Fabricator Hacks . | . . . Repair Station Hacks 6 | . 6 . Scan Component 3 | . 3 . Repair 3 | . 3 . Recycling Unit Hacks . | . . . Scanalyzer . | . . . Garrison Access Hacks . | . . . Unauthorized Hacks 9 | . 9 . Terminals 7 | . 7 . Botnet 1 | . 1 . Operators 1 | . 1 . Skim 5 | . 5 . Fabricators . | . . . Repair Stations . | . . . Recycling Units 2 | . 2 . Tunnel 2 | . 2 . Scanalyzers . | . . . Garrison Access . | . . . Data Cores Recovered . | . . . Used . | . . . Hacking Detections 5 | . 5 . Full Trace Events . | . . . Feedback Events . | . . . Feedback Blocked . | . . . Robot Schematics Acquired . | . . . Robots Built . | . . . Authchips . | . . . Time . | . . . Total Robot Build Rating . | . . . Part Schematics Acquired . | . . . Parts Built . | . . . Authchips . | . . . Time . | . . . Total Part Build Rating . | . . . Part Studies Acquired . | . . . Parts Repaired 3 | . 3 . Time 78 | . 78 . Parts Recycled . | . . . Recycled Matter . | . . . Retrieved Matter . | . . . Retrieved Components . | . . . Parts Scanalyzed . | . . . Part Schematics Acquired . | . . . Parts Damaged . | . . . Bothacking | -11 -10 -10 ------------ Run | Yrd Mat Sub Used RIF Installer . | . . . Robots Hacked . | . . . Non-combat . | . . . Combat . | . . . Robot Hacks Applied . | . . . Relay Couplers Released . | . . . Fabnet Peak Effective % . | . . . Robots Rewired . | . . . Allies Hacked . | . . . Hacks Repelled . | . . . Allies | -11 -10 -10 -------- Run | Yrd Mat Sub Total Allies . | . . . Largest Group . | . . . Highest-Rated Group . | . . . Highest-Rated Ally . | . . . Total Orders . | . . . Ally Attacks . | . . . Total Damage . | . . . Kills . | . . . Allies Corrupted . | . . . Allies Melted . | . . . Intel | -11 -10 -10 ------- Run | Yrd Mat Sub Active Infowar (turns) 87 | . 87 . Sensors 87 | . 87 . Robot Analysis Total 1 | . 1 . Derelict Logs Recovered . | . . . Drone Launches . | . . . Drone Recoveries . | . . . Exploration | -11 -10 -10 ------------- Run | Yrd Mat Sub Turns Passed 1606 | 38 1557 11 Spaces Moved 511 | 9 497 5 Core . | . . . Treads 507 | 5 497 5 Legs 4 | 4 . . Wheels . | . . . Hover . | . . . Flight . | . . . Fastest Speed 120 | 120 160 160 Average Speed 160 | 142 160 160 Slowest Speed 320 | 160 320 160 Overloaded Moves . | . . . Propulsion Burnouts . | . . . Robots Hopped . | . . . Potential Cave-ins . | . . . Cave-ins Triggered . | . . . Exploration Rate (%) 29 | 2 84 3 Regions Visited 2 Branch Regions 1 Pre-discovered Areas 3 | . 3 . Known Exits Taken 1 | . 1 . Unknown Exits Taken 1 | 1 . . Scrap Searched . | . . . Spaces Dug . | . . . Terrain Destroyed 6 | . . 6 Melee . | . . . Projectile . | . . . AOE 6 | . . 6 Terrain Rammed . | . . . Walls Destroyed . | . . . Machines Disabled . | . . . Actions | -11 -10 -10 --------- Run | Yrd Mat Sub Total 1159 | 21 1131 7 Wait 551 | . 550 1 Move 509 | 8 496 5 Hop . | . . . Pick Up 6 | . 6 . Fast Attach 4 | . 4 . Attach 2 | 2 . . Detach . | . . . Swap 8 | . 8 . Drop 5 | 2 3 . Fire 74 | 9 64 1 Melee . | . . . Ram . | . . . Kick . | . . . Crush . | . . . Escape Stasis . | . . . Rewire . | . . . Trap . | . . . Miscellaneous . | . . . Route ------- -11/Scrapyard -10/Materials (discovered 6 exits: *Mat x3 / [*Min x2] / *Sub) -10/Subcaves (discovered 1 exit: [*Mat]) History --------- Turn | Location | Event 25 | -11/Scrapyard | Discovered new exit (range 3) 39 | -11/Scrapyard | Entered Materials 311 | -10/Materials | Build established: Mutant 440 | -10/Materials | Discovered new exit (range 15) 443 | -10/Materials | Discovered new exit (range 8) 518 | -10/Materials | Discovered new exit (range 14) 751 | -10/Materials | Core integrity fell below 50% 904 | -10/Materials | Repaired Lgt. Treads 931 | -10/Materials | Repaired Lgt. Treads 959 | -10/Materials | Repaired Ion Engine 1090 | -10/Materials | Discovered new exit (range 15) 1120 | -10/Materials | Central database locked down 1190 | -10/Materials | Learned location of Recycling (-8) 1299 | -10/Materials | Learned 4 Recycling zone layouts 1337 | -10/Materials | Learned 4 Recycling zone layouts 1367 | -10/Materials | Loaded intel: 1 repair station location 1389 | -10/Materials | Learned 2 Mines zone layouts 1421 | -10/Materials | Identified exit to Materials 1421 | -10/Materials | Identified exit to Subcaves 1596 | -10/Materials | Entered Subcaves 1597 | -10/Subcaves | Approached by a straggling Scientist 1604 | -10/Subcaves | Discovered new exit (range 15) 1606 | -10/Subcaves | Ambushed by Subdweller buried in earth 1607 | -10/Subcaves | Core integrity fell below 20% 1607 | -10/Subcaves | Destroyed by 0H-TEY(R) with Subdweller Machine Gun Last Messages --------------- 01389_ >> SKIM: Stored Mines zone layouts (x2). 01421_ >> SKIM: Loading 2 Materials exits... 01462_ >> SKIM: Exit location confirmed. 01512_ >> SKIM: Loading 2 Materials zones... 01512_ >> SKIM: Data seek routine purged. LOCATION=SUBCAVES AMBIENT_HEAT=-10 GOAL=ESCAPE 01597_ H0-7VJ(c): "Thank the algorithms! I was beginning to lose hope I'd never make it past all the Subs lurking out here." 01600_ H0-7VJ(c): "Hey, let me tag along and I can get us both out of this nasty situation. At least I think I can... The group I got separated from was talking about a shortcut back to the UFD." 01604_ EXIT=FOUND 01606_ A3-4PB(R): "ARGHSUB!" 01606_ H0-7VJ(c) destroyed. 01607_ HN-05B(R): "ARGHSUB!" Map ----- +----------------------------------------------------+ | ???????????????????????????????????????????????? | | ???????????????????????????????????????????????? | | ???????????????????????????????????????????????? | | ???????????????????????????????????????????????? | | ???????????????????????????????????????????????? | | ???????????????????????????????????????????????? | | ???????????????????????????????????????????????? | | ???????????????????????????????????????????????? | | ???????????????????????????????????????????????? | | ???????????????????????????????????????????????? | | ???????????????????????????????????????????????? | | ???????????????????????????????????????????????? | | ?????????????????##????????????????????????????? | | ????????????????## #???????????????????????????? | | ????????????????? ???????????????????????????? | | ????????????????? ###????????????????????????? | | ?????????????????? ##??????????????????????? | | ?????????????????? #??????????????????????? | | ??????????????????? ##?????????????????????? | | ???????????????????# #?????????????????????? | | ???????????????????? ?????????????????????? | | ???????????????#???## ###???????????????????? | | ??????????????## ?##;; ;; ####????????????????? | | ??????????????# ?# ;; ####?????????????? | | ??????????????# # R #?????????????? | | ??????????????# # @ R ????????? | | ???????????????# %! < ????????? | | ???????????????## = R #????????? | | ????????????????# ; R #?????????? | | ????????????????# ;# ##?????????? | | ????????????????# #? #??????????? | | ????????????????# ### ##?? ### #??????????? | | ????????????????# #??###????#???? ??????????? | | ????????????????# ?????????????????????????? | | ????????????????# ?????????????????????????? | | ???????????????? ????????????????????????? | | ??????????????? ????????????????????????? | | ??????????????# ????????????????????????? | | ??????????????# ## ???????????????????????? | | ??????????????####??# ???????????????????????? | | ?????????????????????# ???????????????????????? | | ?????????????????????? ??????????????????????? | | ?????????????????????? ???????????????????????? | | ???????????????????????????????????????????????? | | ???????????????????????????????????????????????? | | ???????????????????????????????????????????????? | | ???????????????????????????????????????????????? | | ???????????????????????????????????????????????? | | ???????????????????????????????????????????????? | | ???????????????????????????????????????????????? | +----------------------------------------------------+ Best States ------------- Heat Dissipation 25 Coolant Potential 50 Energy Generation 10 Energy Capacity 250 Matter Stores 300 Matter Capacity 300 Sight Range 16 Robot Scan Range 14 Terrain Scan Density 10 Evasion (%) 45 Recoil Reduction 2 Item Schematics ----------------- None Robot Schematics ------------------ None Fabricated ------------ Nothing Repaired ---------- Lgt. Treads | 7% | -10/Materials Lgt. Treads | 9% | -10/Materials Ion Engine | 15% | -10/Materials Studied --------- None Alien Tech Used ----------------- None Achievements -------------- None Challenges ------------ None Game ------ Seed HypercooledThermalOptics Manual? 0 Play Time 00:07:23 Cumulative 384.5 hours Start 2026.04.04 @ 16:10:35 End 2026.04.04 @ 16:18:04 Sessions 1 Manual Loads 0 Difficulty Rogue Special Mode None Game No. 320 Rogue 284 Adventurer 36 Explorer 0 Win Type - Total 5 Types 2/0/0/1/0/0/0/2/0/0 Lore% 73 Gallery% 66 Achievement% 54 Wizard Run 0 Options --------- Layout 1 ASCII 0 Keyboard 0 Movement Numpad Keybinds 0 Fullscreen 1 Font 48/Smallcaps Map View 50x35 Zoom Use 0% Tactical HUD 1 Map Filters NONE Filters NONE Steam 1 RUN: cf7af501-f79d-48aa-87c8-522f348d786d